bitfinex-derivatives/quotes_ETHF0:USTF0_20210109
["timestamp","ask_amount","ask_price","bid_price","bid_amount"]
[1610158537488,64.0732,1205.6,1204.2,61.2899]
[1610158537690,4.00959,1204.5,1204.4,4.00959]
[1610158537890,4.00959,1204.5,1204.2,61.2899]
[1610158538088,4.00959,1204.5,1203.9,3.06495038]
[1610158538288,4.00959,1204.5,1203.9,2.8271]
[1610158538490,4.00959,1204.5,1203.8,66.75440838]
[1610158539692,4.00959,1204.3,1204.0,4.00959]
[1610158541596,4.00959,1204.1,1204.0,4.00959]
[1610158541796,2.0716,1204.7,1204.0,4.00959]
[1610158543298,2.0716,1204.7,1203.6,0.23828337]
[1610158543498,2.0716,1204.7,1203.5,53.8261]
[1610158543499,2.0716,1204.7,1203.5,54.06458866]
[1610158543698,4.00959,1203.8,1203.5,3.01078866]
[1610158543899,4.00959,1203.8,1203.5,2.7723]
[1610158544299,4.00959,1203.8,1203.4,4.00959]
[1610158544498,4.00959,1203.8,1203.2,0.23888941]
[1610158544899,4.00959,1203.8,1203.1,2.09234391]
[1610158545699,4.00959,1203.8,1203.2,0.24015485]
[1610158547101,4.00959,1203.8,1203.1,2.33300969]
[1610158547102,4.00959,1203.8,1203.1,2.09315338]
[1610158547300,4.00959,1203.8,1203.1,1.8527]
[1610158547500,4.00959,1203.8,1203.0,0.24059927]
[1610158547702,4.00959,1203.2,1203.0,4.25018927]
[1610158548001,4.00959,1203.2,1203.0,4.00959]
[1610158548600,4.00959,1203.2,1203.0,12.99179]
[1610158549402,4.00959,1203.2,1203.0,8.9822]
[1610158551703,4.00959,1203.2,1203.1,4.00959]
[1610158552203,2.7196,1203.6,1203.1,4.00959]
[1610158553106,2.5438,1203.9,1203.1,4.00959]
[1610158553304,1.8476,1204.2,1203.1,4.00959]
[1610158553504,47.768,1204.3,1203.1,4.00959]
[1610158553704,4.00959,1203.4,1203.1,4.00959]
[1610158553904,2.5523,1204.0,1203.1,67.40229]
[1610158554310,2.5523,1204.0,1203.1,69.94409]
[1610158555707,2.5523,1204.0,1203.5,4.00959]
[1610158556108,2.5523,1204.0,1203.5,11.69229]
[1610158556308,42.44520966,1205.0,1203.5,11.69229]
[1610158556509,117.45180935,1205.1,1203.5,11.69229]
[1610158556809,75.0116,1205.1,1203.5,11.69229]
[1610158557710,75.0116,1205.1,1204.0,4.00959]
[1610158558110,75.0116,1205.1,1203.5,7.6827]
[1610158558314,77.611,1205.1,1203.5,7.6827]
[1610158558712,120.05137668,1205.1,1203.5,7.6827]
[1610158559814,4.00959,1203.6,1203.5,11.69229]
[1610158561616,4.00959,1203.6,1203.5,7.6827]
[1610158561817,4.00959,1203.6,1203.4,2.197]
[1610158562016,4.00959,1203.6,1203.2,4.00959]
[1610158562817,4.00959,1203.6,1203.1,2.5418]
[1610158563017,4.00959,1203.6,1202.9,59.91540007]
[1610158563419,4.00959,1203.6,1203.3,1.26984423]
[1610158563719,4.00959,1203.4,1203.3,1.26984423]
[1610158564820,4.00959,1203.4,1203.0,1.26985905]
[1610158565721,4.00959,1203.4,1203.3,4.00959]
[1610158567520,4.00959,1203.4,1203.3,5.27918229]
[1610158570624,4.00959,1203.4,1203.3,56.00868229]
[1610158571225,1.9079,1204.0,1203.3,5.27918229]
[1610158571424,2.8905,1204.3,1203.9,55.4775]
[1610158571624,45.04334807,1205.1,1203.9,55.4775]
[1610158571824,45.04334807,1205.1,1203.3,5.27918229]
[1610158571825,2.5994,1205.1,1204.4,4.00959]
[1610158572024,42.43060063,1205.3,1204.6,52.2574]
[1610158572225,42.42435692,1205.5,1204.6,52.2574]
[1610158572626,42.42248875,1205.6,1204.6,52.2574]
[1610158572929,48.49523894,1205.7,1204.6,52.2574]
[1610158573226,6.0761,1205.7,1204.6,52.2574]
[1610158573826,4.00959,1204.7,1204.6,56.26699]
[1610158574026,4.00959,1204.7,1204.3,2.3103]
[1610158574627,4.00959,1204.7,1204.1,61.9315]
[1610158575829,4.00959,1204.9,1204.3,4.00959]
[1610158576430,4.00959,1204.9,1204.1,61.9315]
[1610158577834,2.7107,1205.1,1204.3,4.00959]
[1610158579338,2.9191,1205.4,1204.3,4.00959]
[1610158579538,125.90534891,1205.7,1204.1,61.9315]
[1610158579738,4.00959,1204.2,1204.1,61.9315]
[1610158579938,4.00959,1204.2,1204.0,2.9518]
[1610158580138,4.00959,1204.2,1203.6,2.06851663]
[1610158580638,4.00959,1204.2,1203.6,1.8274]
[1610158580838,4.00959,1204.2,1203.5,57.44000204]
[1610158580839,4.00959,1204.2,1203.5,57.1988]
[1610158581540,6.63129,1204.2,1203.5,57.1988]
[1610158581739,4.00959,1203.6,1203.5,57.1988]
[1610158582339,4.00959,1203.6,1203.1,0.24082305]
[1610158582940,4.00959,1203.6,1203.0,56.97079181]
[1610158583140,4.00959,1203.6,1203.0,56.7301]
[1610158583339,6.54739,1203.6,1203.0,56.7301]
[1610158583740,4.00959,1203.1,1203.0,56.7301]
[1610158583940,4.00959,1203.1,1202.7,0.2408757]
[1610158584341,4.00959,1203.1,1202.6,0.24098935]
[1610158584943,4.00959,1203.1,1202.5,0.24123726]
[1610158585343,4.00959,1203.1,1202.4,0.24130665]
[1610158585744,4.00959,1202.5,1202.4,0.24130665]
[1610158586747,4.00959,1202.5,1202.3,0.24186612]
[1610158587147,4.00959,1202.5,1202.2,0.24193629]
[1610158587848,4.00959,1202.3,1202.2,0.24193629]
[1610158588048,2.0732,1202.7,1202.2,0.24193629]
[1610158588648,2.3208,1203.0,1202.2,0.24193629]
[1610158589049,2.3208,1203.0,1202.4,0.24082064]
[1610158589251,2.7721,1203.3,1202.4,0.24082064]
[1610158589449,2.7721,1203.3,1202.4,2.57422064]
[1610158589649,6.3478,1204.0,1202.5,0.24076929]
[1610158589850,4.00959,1202.9,1202.6,4.00959]
[1610158590249,4.00959,1202.9,1202.5,0.24076929]
[1610158591251,4.00959,1202.9,1202.4,11.11175006]
[1610158591753,2.0516,1203.3,1202.4,11.11175006]
[1610158591754,4.00959,1202.5,1202.4,11.11175006]
[1610158591953,2.0336,1203.0,1202.4,10.871]
[1610158592653,2.0336,1203.0,1202.4,2.3334]
[1610158592855,2.0336,1203.0,1202.6,60.7993]
[1610158593053,2.0516,1203.3,1202.6,60.7993]
[1610158593454,6.3478,1204.0,1202.6,60.7993]
[1610158593655,96.52322376,1204.7,1202.7,0.24043562]
[1610158593857,4.00959,1203.2,1203.0,4.00959]
[1610158594056,4.00959,1203.2,1202.7,2.06183562]
[1610158595458,4.00959,1203.2,1202.7,1.8214]
[1610158595858,4.00959,1203.0,1202.7,1.8214]
[1610158596759,4.00959,1203.0,1202.7,2.06187473]
[1610158597058,4.00959,1203.0,1202.7,1.8214]
[1610158597859,4.00959,1202.8,1202.7,1.8214]
[1610158598059,4.00959,1202.8,1202.5,0.24075266]
[1610158598460,4.00959,1202.8,1202.4,0.24096702]
[1610158598759,4.00959,1202.8,1202.3,4.25069581]
[1610158598963,4.00959,1202.8,1202.3,0.24110581]
[1610158599559,4.00959,1202.8,1202.5,1.2705226]
[1610158599960,2.4223,1203.0,1202.7,60.10449]
[1610158600162,2.6174,1203.5,1202.7,60.10449]
[1610158600761,2.1526,1203.8,1202.7,60.10449]
[1610158600961,6.6069,1204.1,1202.8,1.27001554]
[1610158601361,6.6069,1204.1,1202.8,1.51075627]
[1610158601965,4.00959,1203.2,1202.9,4.00959]
[1610158602362,4.00959,1203.2,1202.9,1.26981215]
[1610158603765,4.00959,1203.2,1202.8,1.27012999]
[1610158603964,4.00959,1203.0,1202.8,1.27012999]
[1610158604366,6.42749,1203.0,1202.8,1.27012999]
[1610158605167,6.42749,1203.0,1202.6,1.27062063]
[1610158605867,4.00959,1202.7,1202.6,1.27062063]
[1610158606668,4.00959,1202.7,1202.5,1.27066476]
[1610158609373,6.20089,1202.7,1202.5,1.27066476]
[1610158609973,6.20089,1202.7,1202.2,1.27092457]
[1610158610574,36.20089,1202.7,1202.2,1.27092457]
[1610158611375,36.20089,1202.7,1202.0,1.27106654]
[1610158611877,4.00959,1202.1,1202.0,1.27106654]
[1610158612878,4.00959,1202.1,1202.0,1.51254194]
[1610158614079,2.4179,1203.0,1202.0,1.51254194]
[1610158614279,2.5067,1203.3,1202.0,4.01966654]
[1610158614479,91.1854,1203.4,1202.0,4.01966654]
[1610158614681,91.1854,1203.4,1202.2,0.24114614]
[1610158615381,91.1854,1203.4,1202.1,0.24098111]
[1610158615581,91.1854,1203.4,1202.3,1.27065864]
[1610158615981,4.00959,1202.4,1202.3,1.27065864]
[1610158617083,4.00959,1202.4,1202.2,1.27089642]
[1610158618385,4.00959,1202.4,1202.1,1.2711236]
[1610158619786,4.00959,1202.4,1202.0,1.2709301]
[1610158619986,4.00959,1202.2,1202.0,1.2709301]
[1610158620386,4.00959,1202.2,1202.0,1.51212371]
[1610158621186,4.00959,1202.2,1202.1,1.27082012]
[1610158621786,4.00959,1202.2,1202.1,58.29942012]
[1610158626791,4.00959,1202.2,1202.1,1.27082012]
[1610158628500,4.00959,1202.2,1201.8,1.27129892]
[1610158629803,34.00959,1202.2,1201.8,1.27129892]
[1610158630004,4.00959,1201.9,1201.8,1.27129892]
[1610158631203,4.00959,1201.9,1201.5,1.27162143]
[1610158631906,4.00959,1201.6,1201.5,1.27162143]
[1610158632105,6.20509,1201.6,1201.5,1.27162143]
[1610158632706,6.20509,1201.6,1200.9,0.24144999]
[1610158633506,6.20509,1201.6,1200.7,65.92116722]
[1610158633507,6.20509,1201.6,1200.8,0.24177951]
[1610158633909,4.00959,1200.9,1200.8,0.24177951]
[1610158634108,4.00959,1200.9,1200.6,0.48369828]
[1610158634109,4.00959,1200.9,1200.6,0.24201774]
[1610158634508,4.00959,1200.9,1200.5,0.24215338]
[1610158634909,4.00959,1200.9,1200.6,62.1131]
[1610158635111,4.00959,1200.9,1200.6,62.35548901]
[1610158635511,4.00959,1200.9,1200.7,0.24228573]
[1610158635708,4.00959,1200.9,1200.7,3.14990206]
[1610158635910,4.00959,1200.9,1200.8,0.24215816]
[1610158636110,4.00959,1200.9,1200.8,0.48424292]
[1610158637314,4.00959,1200.9,1200.8,1.7561817]
[1610158638213,4.00959,1200.9,1200.8,1.27193878]
[1610158638614,4.00959,1200.9,1200.8,1.51395431]
[1610158639013,4.00959,1200.9,1200.8,1.27193878]
[1610158640014,4.00959,1200.9,1200.4,2.4144]
[1610158640416,4.00959,1200.9,1200.3,65.82361607]
[1610158641716,4.00959,1200.9,1200.5,0.24258827]
[1610158641916,4.00959,1200.6,1200.5,0.24258827]
[1610158642118,2.4508,1201.2,1200.5,0.24258827]
[1610158642316,2.7522,1202.0,1200.6,68.4426]
[1610158642518,83.13205727,1202.6,1200.6,68.4426]
[1610158642718,2.1015,1202.4,1200.7,0.24224944]
[1610158642916,2.1015,1202.4,1201.0,0.2418213]
[1610158643116,2.1015,1202.4,1201.0,2.7072213]
[1610158643317,32.1015,1202.4,1201.1,0.24178904]
[1610158643717,32.1015,1202.4,1201.0,2.70732654]
[1610158643917,4.00959,1201.1,1201.0,2.70732654]
[1610158644118,4.00959,1201.1,1201.0,2.4654]
[1610158645322,4.00959,1201.1,1200.7,2.6543]
[1610158646019,4.00959,1200.8,1200.7,2.6543]
[1610158646219,2.0751,1201.5,1200.7,2.6543]
[1610158646420,2.0751,1201.5,1200.7,2.89647756]
[1610158646621,2.0751,1201.5,1200.7,53.23137756]
[1610158646821,2.1078,1201.8,1200.7,53.23137756]
[1610158647021,2.1078,1201.8,1200.8,1.51376695]
[1610158647223,2.1078,1201.8,1200.9,0.2417101]
[1610158647923,4.00959,1201.0,1200.9,0.2417101]
[1610158648325,4.00959,1201.0,1200.8,0.24182599]
[1610158648723,4.00959,1201.0,1200.7,2.89629641]
[1610158649123,4.00959,1201.0,1200.7,2.6543]
[1610158649328,4.00959,1201.0,1200.6,0.24205084]
[1610158649829,4.00959,1201.0,1200.8,1.2721336]
[1610158650629,4.00959,1201.0,1200.9,0.24164274]
[1610158652631,4.00959,1201.0,1200.9,1.51350983]
[1610158653332,4.00959,1201.0,1200.9,0.24164274]
[1610158653932,4.00959,1201.0,1200.9,1.51351159]
[1610158657936,4.00959,1201.0,1200.9,1.27186885]
[1610158661138,4.00959,1201.0,1200.8,1.27221711]
[1610158663140,3.99561039,1201.0,1200.8,1.27221711]
[1610158668145,3.99561039,1201.0,1200.8,1.51413243]
[1610158669148,3.99561039,1201.0,1200.9,0.24196703]
[1610158669348,3.99561039,1201.0,1200.9,1.51393183]
[1610158670150,3.99561039,1201.0,1200.9,1.2719648]
[1610158671150,3.99561039,1201.0,1200.9,1.26346423]
[1610158672250,3.99561039,1201.0,1200.8,1.2722561]
[1610158673052,3.99561039,1201.0,1200.8,1.5150827]
[1610158674153,3.99561039,1201.0,1200.9,0.2426264]
[1610158674551,3.99561039,1201.0,1200.8,1.5148225]
[1610158674851,3.99561039,1201.0,1200.9,0.24256264]
[1610158675155,3.99561039,1201.0,1200.9,1.27203436]
[1610158676755,3.99561039,1201.0,1200.8,1.27226179]
[1610158680264,3.99561039,1201.0,1200.8,1.51443962]
[1610158681265,2.417,1202.1,1200.9,0.24203389]
[1610158681464,32.1015,1202.4,1200.9,0.24203389]
[1610158681664,32.1015,1202.4,1201.1,67.3711]
[1610158681865,2.1015,1202.4,1201.1,69.2095]
[1610158682264,6.1985,1202.7,1201.2,0.24153426]
[1610158682464,4.00959,1201.5,1201.4,4.00959]
[1610158682664,2.7355,1202.6,1201.4,4.00959]
[1610158682864,2.7355,1202.6,1201.4,12.50939]
[1610158683063,2.7355,1202.6,1201.4,15.28289]
[1610158683265,2.7355,1202.6,1201.4,15.52404246]
[1610158683466,2.7355,1202.6,1201.8,49.3616]
[1610158683666,6.4732,1203.1,1201.8,51.4507]
[1610158684068,30.0,1203.3,1201.8,51.4507]
[1610158684470,30.0,1203.3,1202.4,4.00959]
[1610158684667,42.48782478,1203.6,1202.4,4.00959]
[1610158684668,30.0,1203.6,1202.4,4.00959]
[1610158685068,30.0,1203.6,1202.5,49.5543]
[1610158685567,6.49,1203.7,1202.5,49.5543]
[1610158686368,6.49,1203.7,1202.9,4.00959]
[1610158686569,6.49,1203.7,1202.9,5.92979]
[1610158686768,6.49,1203.7,1202.9,1.9202]
[1610158688368,36.49,1203.7,1202.9,1.9202]
[1610158688569,4.00959,1203.0,1202.9,1.9202]
[1610158689171,4.00959,1203.0,1202.3,2.7855]
[1610158689372,4.00959,1203.0,1202.3,52.3065]
[1610158689973,34.00959,1203.0,1202.3,52.3065]
[1610158690476,4.00959,1202.4,1202.3,52.3065]
[1610158690874,4.00959,1202.4,1202.3,2.7855]
[1610158691074,4.00959,1202.4,1201.9,47.0899]
[1610158691476,4.00959,1202.4,1201.8,2.0891]
[1610158691674,4.00959,1202.4,1201.7,4.25026593]
[1610158691874,4.00959,1202.4,1201.8,0.24054211]
[1610158692075,4.00959,1202.4,1201.9,0.24029506]
[1610158692475,4.00959,1202.4,1202.3,4.00959]
[1610158692674,4.00959,1202.4,1202.3,6.79639]
[1610158694177,4.00959,1202.4,1202.3,2.7868]
[1610158696577,4.00959,1202.4,1202.3,6.79639]
[1610158697180,32.9832,1203.5,1202.3,6.79639]
[1610158697378,32.9832,1203.5,1202.4,66.8903]
[1610158698479,4.00959,1202.5,1202.4,66.8903]
[1610158698781,4.00959,1202.5,1202.3,6.79639]
[1610158699380,4.00959,1202.5,1202.3,2.7868]
[1610158699579,4.00959,1202.5,1202.0,48.6797]
[1610158700180,34.00959,1202.5,1201.8,2.44742962]
[1610158700585,4.00959,1201.9,1201.8,2.2076]
[1610158700786,4.00959,1201.9,1201.4,3.01367593]
[1610158701187,4.00959,1201.9,1201.4,2.7735]
[1610158701386,34.00959,1201.9,1201.4,2.7735]
[1610158701586,34.00959,1201.9,1201.2,56.12641531]
[1610158701988,34.00959,1201.9,1201.2,55.8863]
[1610158702186,4.00959,1201.9,1201.2,55.8863]
[1610158702388,34.00959,1201.9,1201.2,55.8863]
[1610158702586,4.00959,1201.3,1201.2,55.8863]
[1610158702786,4.00959,1201.3,1201.0,0.24007654]
[1610158702988,4.00959,1201.3,1200.9,0.23998229]
[1610158703788,4.00959,1201.3,1201.1,53.32089947]
[1610158703988,4.00959,1201.3,1201.1,55.47759947]
[1610158704588,2.9824,1202.4,1201.2,4.00959]
[1610158704790,2.9824,1202.4,1201.2,4.24921274]
[1610158705189,2.9824,1202.4,1201.3,0.23950047]
[1610158705591,2.9824,1202.4,1201.4,0.23959502]
[1610158705791,2.9824,1202.4,1201.4,2.7498]
[1610158706393,30.0,1202.4,1201.4,2.7498]
[1610158706591,4.00959,1201.5,1201.4,2.7498]
[1610158711094,4.00959,1201.5,1201.3,0.23983383]
[1610158711496,4.00959,1201.5,1201.1,2.39647156]
[1610158711796,4.00959,1201.5,1201.1,2.1567]
[1610158711996,4.00959,1201.5,1201.0,0.2399266]
[1610158712497,4.00959,1201.5,1200.9,0.24043091]
[1610158712698,4.00959,1201.0,1200.9,0.24043091]
[1610158713498,4.00959,1201.0,1200.8,0.24032743]
[1610158718504,4.00959,1201.0,1200.9,1.2718954]
[1610158718703,4.00959,1201.0,1200.9,3.0658954]
[1610158721403,4.00959,1201.0,1200.9,1.2718954]
[1610158722303,34.00959,1201.0,1200.9,1.2718954]
[1610158722504,34.00959,1201.0,1200.8,1.27225228]
[1610158722903,4.00959,1201.0,1200.8,1.27225228]
[1610158727509,2.0387,1201.5,1200.8,1.27225228]
[1610158727708,2.3876,1202.0,1201.0,62.5064]
[1610158727908,30.0,1202.1,1201.0,62.5064]
[1610158728308,30.0,1202.2,1201.0,62.5064]
[1610158728508,30.0,1202.2,1201.0,62.74753323]
[1610158728715,30.0,1202.2,1201.3,4.00959]
[1610158729114,30.0,1202.2,1201.3,11.14849]
[1610158729814,30.0,1202.2,1201.4,1.2716587]
[1610158730615,4.00959,1201.5,1201.4,1.2716587]
[1610158740023,34.00959,1201.5,1201.4,1.2716587]
[1610158741326,34.00959,1201.5,1200.9,66.783]
[1610158741725,34.00959,1201.5,1200.9,63.9238]
[1610158742626,4.00959,1201.0,1200.9,63.9238]
[1610158742826,34.00959,1201.0,1200.9,63.9238]
[1610158743227,34.00959,1201.0,1200.6,2.51642593]
[1610158743427,34.00959,1201.0,1200.6,2.2746]
[1610158743628,34.00959,1201.0,1200.5,0.24172915]
[1610158744029,34.00959,1201.0,1200.4,46.91696011]
[1610158744630,4.00959,1200.5,1200.4,46.91696011]
[1610158744833,4.00959,1200.5,1200.4,46.6752]
[1610158748639,4.00959,1200.5,1200.2,0.24206636]
[1610158750842,4.00959,1200.3,1200.2,0.24206636]
[1610158751645,4.00959,1200.3,1200.2,1.5147285]
[1610158753344,4.00959,1200.3,1200.2,1.27266214]
[1610158753545,4.00959,1200.3,1200.2,10.81116214]
[1610158754045,4.00959,1200.3,1200.2,11.05276366]
[1610158754746,4.00959,1200.3,1200.2,10.81116214]
[1610158756546,4.00959,1200.3,1200.2,12.74086214]
[1610158763757,4.00959,1200.3,1200.2,3.20236214]
[1610158763957,4.00959,1200.3,1200.2,1.27266214]
[1610158764157,2.7654,1200.8,1200.3,66.4114]
[1610158764759,4.00959,1200.5,1200.3,66.4114]
[1610158765158,4.00959,1200.5,1200.2,5.52283459]
[1610158765159,4.00959,1200.5,1200.2,1.51324459]
[1610158765959,4.00959,1200.5,1200.3,1.27281359]
[1610158766958,34.00959,1200.5,1200.3,1.27281359]
[1610158767159,91.89119,1200.5,1200.3,1.27281359]
[1610158767360,91.89119,1200.5,1200.1,1.27299721]
[1610158767561,94.18999,1200.5,1200.1,1.27299721]
[1610158768761,94.18999,1200.5,1199.9,1.273213]
[1610158768960,4.00959,1200.2,1199.9,1.273213]
[1610158769162,36.94239,1200.2,1199.9,1.273213]
[1610158770665,6.94239,1200.2,1199.6,52.40225332]
[1610158770869,4.00959,1199.7,1199.6,52.40225332]
[1610158771970,4.00959,1199.7,1199.6,53.67548589]
[1610158772269,4.00959,1199.7,1199.6,53.43433257]
[1610158772467,4.00959,1199.7,1199.6,1.27323257]
[1610158772669,4.00959,1199.7,1199.6,1.51414148]
[1610158773477,4.00959,1199.7,1199.6,1.27323257]
[1610158773674,4.00959,1199.7,1199.6,1.51390736]
[1610158775775,4.00959,1199.7,1199.6,1.27323257]
[1610158777777,4.00959,1199.7,1199.5,1.2734047]
[1610158780481,4.00959,1199.7,1199.4,1.273466]
[1610158780680,4.00959,1199.7,1199.4,1.51355678]
[1610158780881,4.00959,1199.5,1199.4,1.51355678]
[1610158781284,4.00959,1199.5,1199.4,1.75327962]
[1610158783081,4.00959,1199.5,1199.4,1.273466]
[1610158783482,4.00959,1199.5,1199.4,1.51263309]
[1610158786184,4.00959,1199.5,1199.4,1.273466]
[1610158788787,4.00959,1199.5,1199.3,1.273527]
[1610158789187,10.94279,1199.5,1199.3,1.273527]
[1610158789387,4.00959,1199.5,1199.3,1.273527]
[1610158790190,50.7463,1199.4,1199.3,1.273527]
[1610158790989,80.7463,1199.4,1199.3,1.273527]
[1610158791391,80.7463,1199.4,1199.0,1.27409436]
[1610158792890,4.00959,1199.1,1198.8,1.27412525]
[1610158793292,6.35189,1199.1,1198.8,1.27412525]
[1610158794895,4.00959,1198.9,1198.8,1.27412525]
[1610158795396,4.00959,1198.9,1198.8,1.51394732]
[1610158796799,4.00959,1198.9,1198.8,1.27412525]
[1610158797197,34.00959,1198.9,1198.8,1.27412525]
[1610158797399,4.00959,1198.9,1198.8,1.27412525]
[1610158798398,4.00959,1198.9,1198.6,1.27439316]
[1610158798798,30.0,1198.8,1198.6,1.27439316]
[1610158798998,4.00959,1198.7,1198.6,1.27439316]
[1610158799198,34.00959,1198.7,1198.6,1.27439316]
[1610158799798,34.00959,1198.7,1197.5,0.240835]
[1610158799999,34.00959,1198.7,1197.4,0.24097983]
[1610158800198,4.00959,1198.7,1197.5,61.0333]
[1610158800802,34.00959,1198.7,1197.5,61.0333]
[1610158801003,4.00959,1197.6,1197.4,0.24097983]
[1610158801404,4.00959,1197.6,1197.3,0.48185435]
[1610158801405,4.00959,1197.6,1197.3,0.24101518]
[1610158802906,4.00959,1197.4,1197.3,0.24101518]
[1610158803107,4.00959,1197.4,1197.2,0.2410494]
[1610158803509,4.00959,1197.4,1197.3,0.24105364]
[1610158804708,1.9075,1197.9,1197.3,0.24105364]
[1610158804910,4.00959,1197.4,1197.3,0.48198965]
[1610158805109,1.9075,1197.9,1197.3,0.48198965]
[1610158805309,1.9075,1197.9,1197.5,0.24075539]
[1610158805509,2.172,1198.2,1197.5,0.24075539]
[1610158805709,2.172,1198.2,1197.8,0.24045372]
[1610158805909,2.172,1198.2,1197.9,56.1123]
[1610158806510,55.8054,1199.5,1197.9,56.1123]
[1610158806910,4.00959,1198.0,1197.9,56.1123]
[1610158807113,4.00959,1198.0,1197.9,56.35237108]
[1610158807312,4.00959,1198.0,1197.9,56.1123]
[1610158807711,4.00959,1198.0,1197.9,56.59193394]
[1610158808411,4.00959,1198.0,1197.9,56.1123]
[1610158808612,4.00959,1198.0,1197.9,56.35232167]
[1610158808911,4.00959,1198.0,1197.9,60.36191167]
[1610158809114,2.2538,1198.6,1197.9,60.36191167]
[1610158809311,2.2538,1198.6,1197.9,4.24961167]
[1610158809512,2.2538,1198.6,1198.3,50.9265]
[1610158809713,6.5786,1199.7,1198.3,50.9265]
[1610158810112,6.5786,1199.7,1198.3,51.16605158]
[1610158810311,6.5786,1199.7,1198.5,0.23936375]
[1610158810511,6.5786,1199.7,1198.5,2.74116375]
[1610158810711,47.7062,1200.3,1198.5,2.74116375]
[1610158810911,3.475,1200.5,1198.5,2.74116375]
[1610158811111,4.00959,1198.9,1198.8,4.00959]
[1610158811711,4.00959,1198.9,1198.7,0.23951794]
[1610158812812,4.00959,1198.9,1198.6,0.23999685]
[1610158813012,4.00959,1198.7,1198.6,0.23999685]
[1610158813813,4.00959,1198.7,1198.5,58.00952809]
[1610158814114,4.00959,1198.7,1198.5,57.7693]
[1610158815819,4.00959,1198.7,1198.5,2.5018]
[1610158816017,4.00959,1198.7,1198.2,0.24094867]
[1610158816417,4.00959,1198.7,1198.1,0.24125598]
[1610158817018,4.00959,1198.2,1198.1,0.24125598]
[1610158817818,2.5448,1198.8,1198.1,0.48294588]
[1610158818018,2.6903,1199.1,1198.5,56.0047]
[1610158818618,6.1411,1199.9,1198.5,56.0047]
[1610158818819,6.1411,1199.9,1198.5,56.24589625]
[1610158819220,6.1411,1199.9,1198.7,4.00959]
[1610158819820,6.1411,1199.9,1198.7,0.2405984]
[1610158820220,6.1411,1199.9,1198.7,2.4105984]
[1610158820420,36.1411,1199.9,1198.7,2.17]
[1610158821223,4.00959,1198.8,1198.5,56.0047]
[1610158822420,4.00959,1198.8,1198.6,1.27459245]
[1610158823821,6.1411,1199.9,1198.6,1.27459245]
[1610158824021,6.1411,1199.9,1198.6,1.51445131]
[1610158824222,6.1411,1199.9,1198.8,59.057]
[1610158825123,6.1411,1199.9,1198.9,1.27416664]
[1610158825824,36.1411,1199.9,1198.9,1.27416664]
[1610158827125,4.00959,1199.0,1198.9,1.27416664]
[1610158829526,4.00959,1199.0,1198.7,1.2745256]
[1610158831127,2.6167,1199.2,1198.8,4.00959]
[1610158831328,2.7366,1199.5,1198.8,4.00959]
[1610158831528,2.7366,1199.5,1198.7,1.2745256]
[1610158832228,36.1411,1199.9,1198.7,1.2745256]
[1610158832628,36.1411,1199.9,1199.0,46.675]
[1610158832829,6.1411,1199.9,1199.0,46.675]
[1610158833228,4.00959,1199.1,1199.0,46.675]
[1610158834429,2.9095,1200.1,1199.0,46.91480718]
[1610158835129,4.00959,1199.2,1199.0,46.91480718]
[1610158835328,4.00959,1199.2,1199.0,48.18862701]
[1610158836630,4.00959,1199.2,1199.1,1.27385584]
[1610158836830,4.00959,1199.2,1199.1,3.82355584]
[1610158837230,4.00959,1199.2,1199.1,7.83314584]
[1610158837431,2.9095,1200.1,1199.1,8.07287259]
[1610158838633,2.9095,1200.1,1199.1,6.79901675]
[1610158839030,30.0,1200.9,1199.2,0.23904172]
[1610158839231,36.5903,1200.9,1199.8,4.00959]
[1610158840230,36.5903,1200.9,1199.8,6.47559]
[1610158840431,36.5903,1200.9,1199.8,2.466]
[1610158840935,36.5903,1200.9,1199.9,1.27337354]
[1610158841137,6.5903,1200.9,1199.9,1.27337354]
[1610158841335,4.00959,1200.0,1199.9,1.27337354]
[1610158844140,4.00959,1200.0,1199.7,1.27345514]
[1610158845240,4.00959,1200.0,1199.7,5.28304514]
[1610158845439,4.00959,1200.0,1199.7,4.00959]
[1610158847242,4.00959,1199.8,1199.7,4.00959]
[1610158848341,4.00959,1199.8,1199.7,5.28300543]
[1610158848542,4.00959,1199.8,1199.7,1.27341543]
[1610158849743,4.00959,1199.8,1199.5,1.27370281]
[1610158851143,4.00959,1199.8,1199.4,56.5584]
[1610158851345,4.00959,1199.5,1199.4,56.5584]
[1610158852344,4.00959,1199.5,1199.4,57.83225248]
[1610158858955,1.9731,1199.9,1199.4,1.27385248]
[1610158859153,1.9708,1200.2,1199.9,59.5337]
[1610158859353,4.00959,1200.0,1199.9,59.5337]
[1610158860055,2.8124,1200.8,1199.9,59.5337]
[1610158860255,42.56707235,1201.5,1199.9,62.2126]
[1610158860455,42.56148882,1201.6,1199.9,2.6789]
[1610158860656,14.78317661,1201.6,1199.9,2.6789]
[1610158860855,48.87500002,1201.7,1200.4,58.6903]
[1610158861058,6.3168,1201.7,1200.4,58.6903]
[1610158861255,4.00959,1200.5,1200.4,58.6903]
[1610158861656,4.00959,1200.5,1200.1,4.00959]
[1610158862055,4.00959,1200.5,1200.1,55.57879]
[1610158862457,4.00959,1200.5,1200.2,1.2729115]
[1610158862857,4.00959,1200.5,1200.2,3.3174115]
[1610158863258,4.00959,1200.3,1200.2,3.3174115]
[1610158863960,4.00959,1200.3,1200.2,2.0445]
[1610158865060,4.00959,1200.3,1200.1,51.5692]
[1610158865661,4.00959,1200.3,1199.9,2.6789]
[1610158865862,4.00959,1200.3,1199.7,57.9666]
[1610158867165,6.65369,1200.3,1199.7,57.9666]
[1610158867364,4.00959,1199.8,1199.7,57.9666]
[1610158871772,2.6441,1200.3,1199.7,57.9666]
[1610158871973,2.6441,1200.3,1199.4,7.22548101]
[1610158872174,2.0938,1200.7,1200.1,52.7693]
[1610158872375,2.8034,1201.0,1200.1,52.7693]
[1610158872573,6.504,1201.3,1200.1,52.7693]